Cogmind - Beta 10.2 @@@ ROGUE MODE // 2021.01.03 @ 18:49:22 Player: aperiodic Result: Destroyed by H-66 Slayer with Gauss Rifle Performance ------------- Evolutions (4) 2000 Regions Visited (13) 2600 Robots Destroyed (634) 3170 Value Destroyed (25124) 25124 Prototype IDs (39) 780 Alien Tech Used (0) 0 Bonus (20564) 20564 TOTAL SCORE: 54238 Bonus ------- Triggered High Security 1500 High Alert Combat Kills 16347 Follower Combat Kills 1328 Entered Garrisons 400 Used RIF Installer 1000 Aligned with FarCom 300 Friendly Fire -311 Cogmind --------- Core Integrity 0/850 Matter 180/300 Energy 100/100 System Corruption 5% Temperature Cool (0) Movement Core (2200) Ox43 Location -6/Factory Parts ------- > --- POWER (1) -------- (None) > --- PROPULSION (2) --- (None) > --- UTILITY (10) ----- High-capacity Storage Unit High-capacity Storage Unit High-capacity Storage Unit High-capacity Storage Unit > --- WEAPON (2) ------- Flak Gun > --- INVENTORY (36) --- Light Treads Light Treads Light Treads Carbon-fiber Leg Improved Cooling System Improved Cooling System Improved Cooling System High-capacity Storage Unit Large Battery (300) High-capacity Matter Pod (149) System Backup Module Improved EM Pulse Cannon Improved EM Pulse Cannon Cooled Particle Cannon Gauss Rifle Gauss Rifle Flak Gun Flak Gun Improved Grenade Launcher Improved Grenade Launcher Improved Grenade Launcher Remote Datajack Peak State ------------ > --- POWER ------------ Antimatter Reactor > --- PROPULSION ------- Heavy Treads > --- UTILITY ---------- Fusion Compressor Improved Cooling System High-capacity Storage Unit High-capacity Storage Unit High-capacity Storage Unit High-capacity Storage Unit Improved Light Armor Plating Damper Plating > --- WEAPON ----------- Proton Missile Launcher Proton Missile Launcher > --- INVENTORY -------- Improved Deuterium Engine Improved Heavy Treads Improved Cooling System Improved Cooling System Improved Cooling System High-capacity Storage Unit Large Battery Compact Battery High-capacity Matter Pod Improved Light Armor Plating Improved Light Armor Plating Improved Light Armor Plating Improved Light Armor Plating System Backup Module Long-range Tractor Beam Improved EM Pulse Cannon Improved EM Pulse Cannon Cooled Particle Cannon Gauss Rifle Gauss Rifle Flak Gun Flak Gun Flak Gun Flak Gun Proton Missile Launcher Proton Missile Launcher Improved Grenade Launcher Improved Grenade Launcher Improved Grenade Launcher Improved Grenade Launcher Heavy Missile Launcher Heavy Missile Launcher Heavy Missile Launcher Long-range Missile Launcher Remote Datajack [Rating: 74] Favorites ----------- Power Cooled Ion Engine Engine Cooled Ion Engine Power Core Light Nuclear Core Reactor Antimatter Reactor Propulsion Armored Treads Treads Armored Treads Wheel Wheel Utility High-capacity Storage Unit Device Improved Cooling System Storage High-capacity Storage Unit Processor Advanced Targeting Computer Hackware System Shield Protection Hardened Medium Armor Plating Weapon Flak Gun Energy Gun Medium Laser Energy Cannon Plasma Cannon Ballistic Gun Flak Gun Ballistic Cannon Advanced Assault Cannon Launcher Proton Missile Launcher Special Weapon Remote Datajack Special Melee Weapon Improved Datajack Build | -11 -10 -10 -10 -9 -8 -8 -8 -8 -7 -7 -7 -7 -6 ------- Run | Scr Mat Min Exi Min Mat Gar Mat Gar Fac Was Fac Low Fac Slots Evolved 8 | . . . . . 4 . . . 2 . . . 2 Power . | . . . . . . . . . . . . . . Propulsion . | . . . . . . . . . . . . . . Utility 8 | . . . . . 4 . . . 2 . . . 2 Weapon . | . . . . . . . . . . . . . . Parts Attached 537 | 8 14 5 2 . 30 17 42 68 80 11 183 2 75 Power 20 | 1 1 1 . . 2 . 1 1 6 2 3 . 2 Engine 12 | 1 1 1 . . 2 . 1 1 3 . . . 2 Core 4 | . . . . . . . . . 3 . 1 . . Reactor 4 | . . . . . . . . . . 2 2 . . Propulsion 36 | 3 10 2 . . 4 2 1 5 4 1 1 . 3 Treads 29 | . 6 2 . . 4 2 1 5 4 1 1 . 3 Leg . | . . . . . . . . . . . . . . Wheel 7 | 3 4 . . . . . . . . . . . . Hover . | . . . . . . . . . . . . . . Flight . | . . . . . . . . . . . . . . Utility 233 | 2 2 . 2 . 13 5 6 23 31 3 108 2 36 Device 127 | . . . . . 1 . . 6 6 2 92 . 20 Storage 20 | 2 2 . 2 . 3 1 . 2 1 . 5 . 2 Processor 5 | . . . . . . . . 1 3 . 1 . . Hackware 20 | . . . . . . 2 2 . 13 1 2 . . Protection 61 | . . . . . 9 2 4 14 8 . 8 2 14 Artifact . | . . . . . . . . . . . . . . Weapon 248 | 2 1 2 . . 11 10 34 39 39 5 71 . 34 Energy Gun 9 | 1 1 1 . . 3 2 . 1 . . . . . Energy Cannon 19 | . . . . . 1 2 4 7 2 . 3 . . Ballistic Gun 91 | 1 . 1 . . 4 3 15 11 21 3 24 . 8 Ballistic Cannon 4 | . . . . . . . . . 2 . 2 . . Launcher 100 | . . . . . 3 2 8 19 3 . 40 . 25 Special Weapon 24 | . . . . . . . 7 1 11 2 2 . 1 Impact Weapon . | . . . . . . . . . . . . . . Slashing Weapon . | . . . . . . . . . . . . . . Piercing Weapon . | . . . . . . . . . . . . . . Special Melee Weapon 1 | . . . . . . 1 . . . . . . . Unidentified Prototypes 5 | . . . . . 3 . . . 1 . 1 . . Parts Lost 64 | . . 3 . . 1 1 . 15 8 . 5 . 31 Power 8 | . . 1 . . 1 . . 1 1 . 1 . 3 Propulsion 11 | . . . . . . . . 4 2 . 1 . 4 Utility 26 | . . . . . . . . 6 3 . 3 . 14 Weapon 19 | . . 2 . . . 1 . 4 2 . . . 10 Highest Loss Streak 19 | . . 2 . . 1 1 . 4 2 . 3 . 19 Average Slot Usage (%) 93 | . 99 95 100 100 99 99 99 99 94 91 85 76 77 Engine 5 | . 14 10 14 14 9 9 9 8 2 2 . . 1 Reactor 2 | . . . . . . . . . . 4 6 7 4 Treads 12 | . 1 10 28 28 18 18 17 17 11 7 7 7 5 Wheel 1 | . 26 17 . . . . . . . . . . . Device 3 | . . . . . . . . 2 1 13 9 3 3 Storage 31 | . 28 28 28 28 29 36 36 36 30 30 30 30 26 Hackware 7 | . . . . . . . 6 5 19 15 7 . . Protection 8 | . . . . . 23 17 11 8 3 . 5 11 19 Energy Gun 1 | . 13 13 14 14 8 1 . . . . . . . Energy Cannon 1 | . . . . . . 5 . 4 . . 1 7 . Ballistic Gun 9 | . 14 13 14 14 6 3 15 7 12 12 6 7 5 Launcher 3 | . . . . . 2 6 . 5 . . 4 . 6 Naked Turns . | . . . . . . . . . . . . . . Heaviest Build 211 | 14 40 40 72 72 162 166 162 162 164 154 208 203 211 Greatest Support 75 | 26 43 46 46 46 46 46 42 48 75 75 70 70 75 Greatest Overweight (x) 4 | . 1 1 1 1 3 3 3 4 3 2 2 2 3 Average Overweight (x) 2 | . . . . 1 2 3 3 3 2 1 2 2 2 Largest Inventory Capacity 36 | 8 16 16 20 20 36 36 36 36 36 36 36 36 36 Average Capacity 33 | 6 11 16 18 20 30 36 36 36 36 36 36 36 36 Most Carried 36 | 6 14 16 20 20 36 36 36 36 36 36 36 36 36 Average Carried 32 | 3 8 14 16 19 28 35 35 33 33 34 33 35 34 Final Capacity 36 | 8 16 16 20 20 36 36 36 36 36 36 36 36 36 Final Carried 36 | 5 14 15 18 20 36 35 36 34 34 36 36 36 22 Class Distribution -------------------- 89% | Hauler-Mutant 5% | Mutant 4% | Bothacker-Mutant Dominant Class ---------------- Mutant | -10/Materials Mutant | -10/Mines Hauler-Mutant | -10/Exiles Hauler-Mutant | -9/Mines Hauler-Mutant | -8/Materials Hauler-Mutant | -8/Garrison Hauler-Mutant | -8/Materials Hauler-Mutant | -8/Garrison Hauler-Mutant | -7/Factory Hauler-Mutant | -7/Waste Hauler-Mutant | -7/Factory Hauler-Mutant | -7/Lower Caves Hauler-Mutant | -6/Factory Resources | -11 -10 -10 -10 -9 -8 -8 -8 -8 -7 -7 -7 -7 -6 ----------- Run | Scr Mat Min Exi Min Mat Gar Mat Gar Fac Was Fac Low Fac Matter Collected 14742 | 286 198 24 86 3 639 430 932 2132 2316 596 4792 20 2288 Remotely 7026 | . . . . . . . . 872 154 596 3877 . 1527 Salvage Created 29069 | 108 490 92 . . 1033 978 1867 5792 2849 1622 9265 . 4973 Parts 1337 | 10 29 13 . . 62 72 113 201 149 23 438 . 227 Haulers Intercepted 13 | . 2 . . . 5 . 1 . 1 . 3 . 1 Recyclers Shooed 12 | . 1 . . . . . 2 . 1 . 8 . . Parts Field Recycled . | . . . . . . . . . . . . . . Retrieved Matter . | . . . . . . . . . . . . . . Parts Self-Destructed . | . . . . . . . . . . . . . . Prevented . | . . . . . . . . . . . . . . Kills | -11 -10 -10 -10 -9 -8 -8 -8 -8 -7 -7 -7 -7 -6 ------- Run | Scr Mat Min Exi Min Mat Gar Mat Gar Fac Was Fac Low Fac Combat Hostiles Destroyed 498 | . 10 6 . . 14 32 30 132 45 6 125 . 98 Melee 1 | . . . . . . . . . . . . . 1 Guns 118 | . 9 6 . . 7 1 14 13 30 6 18 . 14 Cannons 2 | . . . . . . 1 . 1 . . . . . AOE 315 | . 1 . . . 7 28 13 101 15 . 91 . 59 Classes Destroyed 19 | 2 4 . . . 3 4 3 1 1 1 . . . Worker 23 | . . . . . 1 . . . 5 . 15 . 2 Builder 40 | . . . . . . . 4 . 6 . 26 . 4 Tunneler 6 | 2 . . . . . . 1 . 1 . 2 . . Hauler 13 | . 2 . . . 5 . 1 . 1 . 3 . 1 Recycler 26 | 1 1 . . . . . 2 . 8 . 14 . . Mechanic 15 | . . . . . . . . 6 1 . 8 . . Watcher 12 | . 2 . . . 3 1 5 . 1 . . . . Swarmer 52 | . 6 6 . . . 18 7 10 . . . . 5 Saboteur 6 | . . . . . . 2 . . . . . . 4 Grunt 231 | . 4 . . . 9 6 14 65 25 . 70 . 38 Brawler 40 | . . . . . 2 . 2 11 4 . 10 . 11 Duelist 48 | . . . . . . . 1 21 5 . 6 . 15 Protector 34 | . . . . . . 1 . 14 3 . 8 . 8 Sentry 37 | . . . . . 3 3 5 9 2 . 5 . 10 Demolisher 3 | . . . . . . 1 . 2 . . . . . Specialist 1 | . . . . . . 1 . . . . . . . Hunter 20 | . . . . . . . 1 . . . 14 . 5 Programmer 20 | . . . . . . . . . 6 . 12 . 2 Compactor 6 | . . . . . . . . . . 6 . . . Thug 1 | . . . . . 1 . . . . . . . . Best Kill Streak 41 | 3 5 3 . . 4 7 11 41 17 1 17 . 26 Combat Bots Only 40 | . 5 3 . . 3 6 6 40 5 1 16 . 26 Max Kills in Single Turn 9 | 1 1 1 . . 2 4 3 4 6 1 9 . 4 Gunslinging 1 | . . . . . . . 1 . . . . . . Exploded 8 | . 1 . . . 1 4 2 4 3 . 8 . 4 Melee 1 | . . . . . . . . . . . . . 1 Uniques/NPCs Destroyed . | . . . . . . . . . . . . . . Combat | -11 -10 -10 -10 -9 -8 -8 -8 -8 -7 -7 -7 -7 -6 -------- Run | Scr Mat Min Exi Min Mat Gar Mat Gar Fac Was Fac Low Fac Damage Taken 19448 | . 238 231 . 22 692 665 898 3767 2765 . 3449 . 6721 Core 1925 | . 38 36 . 11 16 58 76 277 299 . 245 . 869 Absorbed by Shields 213 | . . . . . . . . . . . 213 . . Reduced by Siege Mode 454 | . . . . . . . . . 49 . 158 . 247 Core Remaining (%) 52 | 100 . . . 66 . . . 22 . . . 22 . Volleys Fired 1224 | 6 59 16 . 3 70 68 107 227 174 67 276 . 151 Largest 2 | 2 2 2 . 2 2 2 2 2 2 2 2 . 2 Hottest 119 | 60 60 70 . 70 80 105 105 119 80 56 78 . 82 Shots Fired 1830 | 12 111 28 . 6 120 74 161 307 274 90 418 . 229 Gun 1012 | 12 111 28 . 6 105 14 111 107 199 82 155 . 82 Cannon 106 | . . . . . 1 13 13 40 23 . 16 . . Launcher 646 | . . . . . 14 47 26 160 9 . 244 . 146 Special 66 | . . . . . . . 11 . 43 8 3 . 1 Kinetic 909 | 6 58 13 . 3 50 10 111 107 221 82 166 . 82 Thermal 118 | . . 10 . 3 29 17 13 40 1 . 5 . . Explosive 141 | . . . . . 10 . . 32 9 . 42 . 48 Electromagnetic 596 | 6 53 5 . . 31 47 26 128 . . 202 . 98 Robot Hit Streak 37 | 5 6 5 . 3 10 8 9 26 24 16 37 . 34 Robot Miss Streak 9 | 1 5 5 . 1 4 5 5 2 9 5 5 . 4 Penetration Max . | . . . . . . . . . . . . . . Secondary Targets 9 | . . 1 . . . . 1 1 5 . . . 1 Max Gunslinging Chain 1 | . . 1 . . . . 1 1 1 . . . 1 Shots Hit Robots 1236 | 8 58 13 . 4 76 28 102 173 232 87 284 . 171 Core Hits 1531 | 4 22 7 . 1 44 42 71 284 223 66 449 . 318 Critical Hits 5 | . . . . . 2 . 2 1 . . . . . Critical Kills 2 | . . . . . 1 . 1 . . . . . . Critical Parts Destroyed 3 | . . . . . 1 . 1 1 . . . . . Melee Attacks 1 | . . . . . . 1 . . . . . . . Impact . | . . . . . . . . . . . . . . Slashing . | . . . . . . . . . . . . . . Piercing . | . . . . . . . . . . . . . . Sneak Attacks . | . . . . . . . . . . . . . . Combat Hostiles . | . . . . . . . . . . . . . . Follow-up Attacks . | . . . . . . . . . . . . . . Damage Inflicted 65780 | 114 736 159 . 52 2082 1853 3150 15079 6635 2548 18742 . 14630 Guns 15831 | 76 657 148 . 52 1016 74 1236 1383 3652 2548 3292 . 1697 Cannons 383 | . . . . . . 93 56 50 52 . 132 . . Explosions 49304 | 38 79 . . . 1057 1686 1780 13646 2903 . 15182 . 12933 Melee . | . . . . . . . . . . . . . . Ramming 262 | . . 11 . . 9 . 78 . 28 . 136 . . Kinetic 14774 | 19 225 41 . 15 408 74 1236 1383 3704 2548 3424 . 1697 Thermal 5553 | 38 79 74 . 37 491 302 82 1222 . . 2578 . 650 Explosive 18704 | . . . . . 753 . . 5598 2903 . 2131 . 7319 Electromagnetic 26487 | 57 432 33 . . 421 1477 1754 6876 . . 10473 . 4964 Impact . | . . . . . . . . . . . . . . Slashing . | . . . . . . . . . . . . . . Piercing . | . . . . . . . . . . . . . . Highest Corruption 5 | . 2 2 2 2 . . . 3 4 4 4 . 5 Average Corruption 2 | . 2 2 2 2 . . . 2 1 2 2 . 2 Corruption Purged 12 | . . . . . . . . . 3 4 5 . . Effects 116 | . 8 9 4 5 . . . 29 20 17 23 . 1 Message Errors 27 | . 2 2 1 2 . . . 6 5 3 6 . . Matter Fused 11 | . . . . . . . . 2 . 4 5 . . Heat Flow Errors 23 | . 1 2 2 2 . . . 6 4 3 3 . . Energy Discharges 20 | . . 2 . 1 . . . 6 7 1 3 . . Data Loss (minor) 19 | . 1 3 1 . . . . 2 3 4 5 . . Targeting Errors 10 | . 1 . . . . . . 6 1 2 . . . Weapon Failures 6 | . 3 . . . . . . 1 . . 1 . 1 Overload Shots . | . . . . . . . . . . . . . . Overflow Damage 956 | . . . . . 18 21 9 248 42 . 373 . 245 Projectiles 18 | . . . . . . . . 18 . . . . . Explosions 936 | . . . . . 18 21 7 230 42 . 373 . 245 Melee 2 | . . . . . . . 2 . . . . . . Knockbacks 1 | . . . . . . . . . . . 1 . . Impact 1 | . . . . . . . . . . . 1 . . Kinetic . | . . . . . . . . . . . . . . Secondary . | . . . . . . . . . . . . . . Self-Inflicted Damage 1090 | . 11 . . . . 12 12 804 157 . 5 . 89 Shots 63 | . 1 . . . . 1 2 45 2 . 3 . 9 Rammed 21 | . . 2 . . 2 . 6 . 2 . 9 . . Targets Rammed 22 | . . 2 . . 2 . 7 . 2 . 9 . . Kicked . | . . . . . . . . . . . . . . Crushed 1 | . . . . . . . 1 . . . . . . Highest Temperature 542 | 40 141 220 146 248 542 224 132 344 271 277 405 . 280 Average Temperature 75 | 18 29 57 73 88 182 42 18 68 46 101 80 . 81 Received Heat Transfer 4811 | . 72 . . 12 351 135 261 945 1113 . 713 . 1209 Effects 30 | . . . . . 18 . . 2 . 1 9 . . Shutdowns 5 | . . . . . 4 . . . . . 1 . . Energy Bleed 5 | . . . . . 2 . . . . 1 2 . . Interference 9 | . . . . . 2 . . 2 . . 5 . . Matter Decay 4 | . . . . . 3 . . . . . 1 . . Short Circuit 3 | . . . . . 3 . . . . . . . . Damage (minor) 1 | . . . . . 1 . . . . . . . . Damage (major) 3 | . . . . . 3 . . . . . . . . Siege Activations 28 | . . . . . . . . . 9 . 10 . 9 Total Turns 3946 | . . . . . . . . . 96 . 3288 . 562 Longest Duration 2486 | . . . . . . . . . 21 . 2486 . 178 Robots Corrupted 64 | . 1 . . . . 2 3 17 . . 17 . 24 Combat Hostiles 62 | . . . . . . 2 3 17 . . 16 . 24 Parts Fried 208 | . 1 . . . 2 9 6 55 . . 77 . 58 Impact Corruptions 1 | . . . . . . . 1 . . . . . . Robots Melted . | . . . . . . . . . . . . . . Combat Hostiles . | . . . . . . . . . . . . . . Parts Melted 2 | . . . . . . . . 2 . . . . . Heat Transferred 7609 | 50 . 222 . 111 1151 338 150 1558 . . 3278 . 751 Parts Sabotaged 2 | . . . . . . . . . . . . . 2 Parts Stolen . | . . . . . . . . . . . . . . Parts Stripped . | . . . . . . . . . . . . . . Power Chain Reactions 109 | 1 2 . . . 2 6 5 17 . . 54 . 22 Missiles Intercepted . | . . . . . . . . . . . . . . Alert | -11 -10 -10 -10 -9 -8 -8 -8 -8 -7 -7 -7 -7 -6 ------- Run | Scr Mat Min Exi Min Mat Gar Mat Gar Fac Was Fac Low Fac Peak Influence 4408 | 15 301 211 . 46 460 1149 1337 4408 2372 355 3532 . 3134 Initial 2314 | . 9 56 . . 17 192 559 859 2314 355 . . 1400 Average 1078 | 7 166 88 . 3 315 777 713 2376 548 146 1533 . 1851 Maximum Alert Level 5 | . 1 1 . . 2 4 4 5 5 1 5 . 5 Low Security (%) 20 | 100 69 91 . 100 8 1 . . 43 69 13 . . Level 1 10 | . 30 8 . . 83 8 . . 6 30 8 . . Level 2 23 | . . . . . 8 34 71 . 33 . 18 . . Level 3 12 | . . . . . . 47 17 18 3 . 8 . . Level 4 9 | . . . . . . 7 11 26 . . 9 . 33 Level 5 9 | . . . . . . . . 11 12 . 14 . 38 High Security 13 | . . . . . . . . 43 . . 27 . 28 Max Security . | . . . . . . . . . . . . . . Sterilizations 2 | . . . . . . . . 1 . . 1 . . Squads Dispatched 138 | . 2 . . 1 5 . 11 22 16 . 46 . 35 Investigation 8 | . 2 . . 1 . . 3 . . . 2 . . Extermination 13 | . . . . . . . . . 6 . 6 . 1 Reinforcement 24 | . . . . . 2 . 2 . 6 . 11 . 3 Assault 70 | . . . . . . . 3 22 4 . 22 . 19 Garrison 23 | . . . . . 3 . 3 . . . 5 . 12 Intercept . | . . . . . . . . . . . . . . Construction Impeded 19 | . . . . . 1 . 1 . 4 . 10 . 3 Haulers Reinforced 1 | . . . . . . . . . . . 1 . . Stealth | -11 -10 -10 -10 -9 -8 -8 -8 -8 -7 -7 -7 -7 -6 --------- Run | Scr Mat Min Exi Min Mat Gar Mat Gar Fac Was Fac Low Fac Distress Signals 14 | . 2 . . . 2 1 1 2 . . 4 . 2 Communications Jammed . | . . . . . . . . . . . . . . Distress Signals . | . . . . . . . . . . . . . . Times Spotted 700 | . 19 9 . 3 37 28 55 184 66 4 180 . 115 Peak Tracking Total 23 | . 3 3 . 3 5 4 5 23 7 2 11 . 21 Tactical Retreats 40 | . 1 2 . . 4 . 3 11 6 . 10 . 3 Traps | -11 -10 -10 -10 -9 -8 -8 -8 -8 -7 -7 -7 -7 -6 ------- Run | Scr Mat Min Exi Min Mat Gar Mat Gar Fac Was Fac Low Fac Traps Triggered 35 | . 3 . . . . 11 1 11 6 . 1 . 2 Indirectly 14 | . . . . . . 3 1 9 . . . . 1 Trap Hack Attempts 6 | . . . . . . 6 . . . . . . . Triggered . | . . . . . . . . . . . . . . Disarmed . | . . . . . . . . . . . . . . Reprogrammed . | . . . . . . . . . . . . . . Reused . | . . . . . . . . . . . . . . Traps Extracted . | . . . . . . . . . . . . . . Installed . | . . . . . . . . . . . . . . Triggered 5 | . . . . . . 1 1 . . . . . 3 Machines | -11 -10 -10 -10 -9 -8 -8 -8 -8 -7 -7 -7 -7 -6 ---------- Run | Scr Mat Min Exi Min Mat Gar Mat Gar Fac Was Fac Low Fac Machines Disabled 37 | . 2 . . . 3 7 4 11 6 . 2 . 2 Max in Single Turn 3 | . 1 . . . 2 2 1 2 3 . 1 . 1 Garrison Access 3 | . . . . . . . . . . . 3 . . Garrison Relay 10 | . . . . . . 5 . 5 . . . . . Phase Generator 1 | . . . . . . . . 1 . . . . . Machines Sabotaged . | . . . . . . . . . . . . . . Garrisons Compromised . | . . . . . . . . . . . . . . Overloaded Fab Kills . | . . . . . . . . . . . . . . Fab Network Shutdowns 2 | . . . . . . . . . 1 . 1 . . Hacking | -11 -10 -10 -10 -9 -8 -8 -8 -8 -7 -7 -7 -7 -6 --------- Run | Scr Mat Min Exi Min Mat Gar Mat Gar Fac Was Fac Low Fac Machines Accessed 53 | . 9 . 2 1 5 . 13 . 10 . 13 . . Terminals 35 | . 8 . . . 4 . 9 . 7 . 7 . . Fabricators 3 | . . . . . . . . . 2 . 1 . . Repair Stations 4 | . 1 . . . . . 2 . 1 . . . . Recycling Units 1 | . . . . . . . . . . . 1 . . Scanalyzers 2 | . . . . . . . 1 . . . 1 . . Garrison Access 5 | . . . . . 1 . 1 . . . 3 . . Total Hacks 176 | . 26 . 2 1 15 . 46 . 33 . 53 . . Successful 116 | . 12 . 2 1 9 . 38 . 16 . 38 . . Failed 59 | . 13 . . . 6 . 8 . 17 . 15 . . Catastrophic 7 | . . . . . . . . . 5 . 2 . . Database Lockouts 1 | . 1 . . . . . . . . . . . . Manual 102 | . 19 . 1 . 11 . 30 . 16 . 25 . . Terminals 118 | . 22 . . . 14 . 30 . 19 . 33 . . Fabricators 12 | . . . . . . . . . 6 . 6 . . Repair Stations 22 | . 4 . . . . . 10 . 8 . . . . Recycling Units 5 | . . . . . . . . . . . 5 . . Scanalyzers 8 | . . . . . . . 2 . . . 6 . . Garrison Access 8 | . . . . . 1 . 4 . . . 3 . . Terminal Hacks 30 | . 5 . 2 1 1 . 7 . 4 . 10 . . Record 1 | . . . 1 . . . . . . . . . . Robot Analysis 1 | . 1 . . . . . . . . . . . . Prototype ID Bank 5 | . 3 . . . 1 . 1 . . . . . . Open Door 1 | . . . . 1 . . . . . . . . . Branch Access Points 1 | . . . . . . . . . . . 1 . . Terminal Index 4 | . 1 . . . . . 1 . 1 . 1 . . Repair Station Index 2 | . . . . . . . 1 . 1 . . . . Garrison Index 1 | . . . . . . . 1 . . . . . . Unreport Threat 3 | . . . . . . . . . . . 3 . . Locate Traps 6 | . . . . . . . 1 . 2 . 3 . . Recall Investigation 1 | . . . . . . . 1 . . . . . . Hauler Manifests 1 | . . . . . . . 1 . . . . . . Zone Layout 2 | . . . . . . . . . . . 2 . . EX-Prototype ID Bank 1 | . . . 1 . . . . . . . . . . Fabricator Hacks 7 | . . . . . . . . . 3 . 4 . . Load Schematic 2 | . . . . . . . . . 1 . 1 . . Build 5 | . . . . . . . . . 2 . 3 . . Repair Station Hacks 16 | . 2 . . . . . 10 . 4 . . . . Scan Component 8 | . 1 . . . . . 5 . 2 . . . . Repair 8 | . 1 . . . . . 5 . 2 . . . . Recycling Unit Hacks 1 | . . . . . . . . . . . 1 . . Report Inventory 1 | . . . . . . . . . . . 1 . . Scanalyzer 8 | . . . . . . . 2 . . . 6 . . Insert Component 3 | . . . . . . . 1 . . . 2 . . Analyze 5 | . . . . . . . 1 . . . 4 . . Garrison Access Hacks 5 | . . . . . 1 . 1 . . . 3 . . Unlock Access 2 | . . . . . 1 . 1 . . . . . . Seal Access 3 | . . . . . . . . . . . 3 . . Unauthorized Hacks 49 | . 5 . . . 7 . 18 . 5 . 14 . . Terminals 45 | . 5 . . . 7 . 17 . 4 . 12 . . Track 17 | . 4 . . . 2 . 6 . 1 . 4 . . Assimilate 4 | . . . . . . . 3 . . . 1 . . Botnet 16 | . . . . . 3 . 8 . 2 . 3 . . Disrupt 5 | . . . . . 1 . . . . . 4 . . Operators 3 | . 1 . . . 1 . . . 1 . . . . Fabricators 2 | . . . . . . . . . 1 . 1 . . Prioritize 1 | . . . . . . . . . . . 1 . . Haulers 1 | . . . . . . . . . 1 . . . . Repair Stations . | . . . . . . . . . . . . . . Recycling Units 1 | . . . . . . . . . . . 1 . . Mask 1 | . . . . . . . . . . . 1 . . Scanalyzers . | . . . . . . . . . . . . . . Garrison Access 1 | . . . . . . . 1 . . . . . . Reprogram 1 | . . . . . . . 1 . . . . . . Data Cores Recovered 1 | . . . . . . . . . . . 1 . . Used 1 | . . . . . . . . . . . 1 . . Hacking Detections 41 | . 7 . . . 3 . 13 . 9 . 9 . . Full Trace Events 3 | . . . . . . . 2 . . . 1 . . Feedback Events . | . . . . . . . . . . . . . . Feedback Blocked . | . . . . . . . . . . . . . . Robot Schematics Acquired . | . . . . . . . . . . . . . . Robots Built . | . . . . . . . . . . . . . . Matter . | . . . . . . . . . . . . . . Time . | . . . . . . . . . . . . . . Total Robot Build Rating . | . . . . . . . . . . . . . . Part Schematics Acquired 2 | . . . . . . . 1 . . . 1 . . Parts Built 6 | . . . . . . . . . 3 . 3 . . Matter 840 | . . . . . . . . . 336 . 504 . . Time 336 | . . . . . . . . . 168 . 168 . . Total Part Build Rating 27 | . . . . . . . . . 15 . 12 . . Parts Repaired 8 | . 1 . . . . . 5 . 2 . . . . Time 280 | . 26 . . . . . 202 . 52 . . . . Parts Recycled . | . . . . . . . . . . . . . . Recycled Matter . | . . . . . . . . . . . . . . Retrieved Matter . | . . . . . . . . . . . . . . Retrieved Components . | . . . . . . . . . . . . . . Parts Scanalyzed 3 | . . . . . . . 1 . . . 2 . . Part Schematics Acquired 2 | . . . . . . . 1 . . . 1 . . Parts Damaged . | . . . . . . . . . . . . . . Bothacking | -11 -10 -10 -10 -9 -8 -8 -8 -8 -7 -7 -7 -7 -6 ------------ Run | Scr Mat Min Exi Min Mat Gar Mat Gar Fac Was Fac Low Fac Used RIF Installer 2 | . . . . . . 1 . 1 . . . . . Zone Cloak 1 | . . . . . . . . 1 . . . . . Robots Hacked 33 | . . . . . . 1 8 . 14 6 3 . 1 Non-combat 25 | . . . . . . . 8 . 13 . 3 . 1 Combat 8 | . . . . . . 1 . . 1 6 . . . Robot Hacks Applied 53 | . . . . . . 1 9 . 32 7 3 . 1 parse_system 1 | . . . . . . . 1 . . . . . . no_distress 2 | . . . . . . . 1 . 1 . . . . find_chute 2 | . . . . . . . . . 1 . . . 1 map_walls 1 | . . . . . . . . . 1 . . . . find_fabricator 1 | . . . . . . . . . . . 1 . . drop_inventory 6 | . . . . . . . 3 . 3 . . . . locate_stockpiles 1 | . . . . . . . . . 1 . . . . find_recycling 3 | . . . . . . . . . 2 . 1 . . check_alert 1 | . . . . . . . 1 . . . . . . purge_threat 16 | . . . . . . . . . 16 . . . . block_reporting 1 | . . . . . . . . . . . 1 . . map_route 3 | . . . . . . . . . 3 . . . . ignore_targets 7 | . . . . . . . . . . 7 . . . overload_power 1 | . . . . . . . . . 1 . . . . formatsys_low 5 | . . . . . . . 3 . 2 . . . . formatsys_high 2 | . . . . . . 1 . . 1 . . . . Relay Couplers Released 39 | . . . . . . 20 . 19 . . . . . Machine Destruction 39 | . . . . . . 20 . 19 . . . . . Attached 14 | . . . . . . 2 1 . 10 1 . . . Robots Rewired 7 | . . . . . . 4 . 3 . . . . . Allies Hacked . | . . . . . . . . . . . . . . Hacks Repelled . | . . . . . . . . . . . . . . Allies | -11 -10 -10 -10 -9 -8 -8 -8 -8 -7 -7 -7 -7 -6 -------- Run | Scr Mat Min Exi Min Mat Gar Mat Gar Fac Was Fac Low Fac Total Allies 41 | . . . . 3 . 5 6 3 3 20 . 1 . Largest Group 19 | . . . . 3 3 4 7 7 1 19 19 1 . Highest-Rated Group 477 | . . . . 40 40 78 119 119 26 477 477 113 . Highest-Rated Ally 113 | . . . . 16 16 21 23 23 26 35 35 113 . Total Orders 40 | . . . . . . 3 19 15 3 . . . . STAY 19 | . . . . . . 2 9 7 1 . . . . FOLLOW 18 | . . . . . . 1 8 8 1 . . . . AID 3 | . . . . . . . 2 . 1 . . . . Ally Attacks 280 | . . . . 12 44 . 44 35 2 49 94 . . Total Damage 5506 | . . . . 144 555 . 749 860 32 804 2362 . . Kills 50 | . . . . 3 6 . 13 6 . . 22 . . Allies Corrupted . | . . . . . . . . . . . . . . Allies Melted . | . . . . . . . . . . . . . . Intel | -11 -10 -10 -10 -9 -8 -8 -8 -8 -7 -7 -7 -7 -6 ------- Run | Scr Mat Min Exi Min Mat Gar Mat Gar Fac Was Fac Low Fac Robot Analysis Total 1 | . 1 . . . . . . . . . . . . Derelict Logs Recovered 3 | . . 2 . 1 . . . . . . . . . Drone Launches . | . . . . . . . . . . . . . . Drone Recoveries . | . . . . . . . . . . . . . . Exploration | -11 -10 -10 -10 -9 -8 -8 -8 -8 -7 -7 -7 -7 -6 ------------- Run | Scr Mat Min Exi Min Mat Gar Mat Gar Fac Was Fac Low Fac Turns Passed 32593 | 89 986 563 643 540 1666 3223 4109 4197 5820 1314 7873 87 1483 Spaces Moved 12124 | 66 820 454 371 290 663 1329 1466 1523 2171 551 2110 41 269 Core 15 | 15 . . . . . . . . . . . . . Treads 10934 | . 26 124 371 290 663 1329 1466 1523 2171 551 2110 41 269 Legs . | . . . . . . . . . . . . . . Wheels 1175 | 51 794 330 . . . . . . . . . . . Hover . | . . . . . . . . . . . . . . Flight . | . . . . . . . . . . . . . . Fastest Speed 50 | 50 80 90 160 180 180 212 217 217 180 180 200 200 200 Average Speed 195 | 77 85 109 170 180 205 216 217 223 208 194 200 200 204 Slowest Speed 250 | 90 160 160 180 180 220 220 217 250 230 200 200 200 220 Overloaded Moves . | . . . . . . . . . . . . . . Propulsion Burnouts . | . . . . . . . . . . . . . . Robots Hopped . | . . . . . . . . . . . . . . Cave-ins Triggered . | . . . . . . . . . . . . . . Exploration Rate (%) 59 | 4 93 91 71 66 53 83 64 99 42 95 62 5 6 Regions Visited 13 Branch Regions 4 Pre-discovered Areas 3 | . . 1 1 1 . . . . . . . . . Known Exits Taken 3 | . . . . . 1 . 1 . . . 1 . . Unknown Exits Taken 6 | 1 1 1 1 1 . . . . . . . 1 . Scrap Searched 5 | . . 1 . 3 . . . . . . . 1 . Spaces Dug 177 | . . . . . 1 . 8 38 7 . 123 . . Terrain Destroyed 1161 | 1 9 . . . 129 8 29 339 113 . 330 . 203 Melee . | . . . . . . . . . . . . . . Projectile 37 | . . . . . 1 . 8 7 13 . 8 . . AOE 1124 | 1 9 . . . 128 8 21 332 100 . 322 . 203 Terrain Rammed . | . . . . . . . . . . . . . . Walls Destroyed . | . . . . . . . . . . . . . . Machines Disabled . | . . . . . . . . . . . . . . Actions | -11 -10 -10 -10 -9 -8 -8 -8 -8 -7 -7 -7 -7 -6 --------- Run | Scr Mat Min Exi Min Mat Gar Mat Gar Fac Was Fac Low Fac Total 19149 | 89 996 495 381 306 868 1597 2253 1996 3225 719 5243 48 933 Wait 4683 | 2 86 13 . . 43 103 613 127 717 55 2532 . 392 Move 12113 | 65 819 453 370 289 663 1327 1466 1522 2171 550 2109 40 269 Hop . | . . . . . . . . . . . . . . Pick Up 284 | 7 12 5 6 8 37 12 11 29 45 16 64 3 29 Fast Attach 18 | 6 . . . . 2 2 1 . 3 1 3 . . Attach 112 | 1 1 3 . . 8 3 2 20 24 5 11 1 33 Detach 13 | . . . . . . . . 1 1 1 5 . 5 Swap 407 | 1 13 2 2 . 20 12 39 48 53 5 169 1 42 Drop 198 | 1 5 1 3 6 23 14 7 10 31 19 63 3 12 Fire 1224 | 6 59 16 . 3 70 68 107 227 174 67 276 . 151 Melee 1 | . . . . . . 1 . . . . . . . Ram . | . . . . . . . . . . . . . . Kick . | . . . . . . . . . . . . . . Crush 22 | . . 2 . . 2 . 7 . 2 . 9 . . Escape Stasis 24 | . . . . . . 14 . 4 4 . 2 . . Rewire 44 | . 1 . . . . 35 . 8 . . . . . Trap 6 | . . . . . . 6 . . . . . . . Miscellaneous . | . . . . . . . . . . . . . . Route ------- -11/Scrapyard -10/Materials (discovered 5 exits: [*Mat x3] / [*Min x2]) -10/Mines (discovered 2 exits: [*Mat] / *Exi) -10/Exiles (discovered 2 exits: *Min x2) -9/Mines -8/Materials (discovered 3 exits: *Fac x2 / Gar) -8/Garrison (discovered 3 exits: *Mat x3) -8/Materials (discovered 2 exits: *Fac / Gar) -8/Garrison (discovered 3 exits: *Fac x3) -7/Factory (discovered 3 exits: [*Fac x2] / *Low) -7/Waste -7/Factory (discovered 2 exits: *Low x2) -7/Lower Caves -6/Factory (discovered 1 exit: [*Fac]) History --------- Turn | Location | Event 10 | -11/Scrapyard | Discovered new exit (range 16) 90 | -11/Scrapyard | Entered Materials 235 | -10/Materials | Discovered new exit (range 16) 312 | -10/Materials | Build established: Mutant 392 | -10/Materials | Discovered new exit (range 15) 617 | -10/Materials | Discovered new exit (range 16) 677 | -10/Materials | Discovered new exit (range 14) 775 | -10/Materials | Central database locked down 788 | -10/Materials | Discovered new exit (range 14) 972 | -10/Materials | Repaired EM Pulse Gun 1076 | -10/Materials | Entered Mines 1097 | -10/Mines | Learned 2 Materials zone layouts 1132 | -10/Mines | Learned location of Storage (-9) 1166 | -10/Mines | Deemed a non-threat by the Exiles lab entrance 1166 | -10/Mines | Discovered new exit (range 5) 1266 | -10/Mines | Discovered new exit (range 8) 1337 | -10/Mines | A weapon hastily lodged in a ceiling crevice suddenly fell to the ground 1392 | -10/Mines | Learned Materials trap positions 1639 | -10/Mines | Entered Exiles 1660 | -10/Exiles | Discovered new exit (range 15) 1683 | -10/Exiles | Met 8R-AWN 1707 | -10/Exiles | Met EX-HEX 1767 | -10/Exiles | Met EX-DEC 1992 | -10/Exiles | Learned location of Zion (-7) 2026 | -10/Exiles | Met EX-BIN 2051 | -10/Exiles | Aligned with FarCom system 2053 | -10/Exiles | Given EX-Vault access code 2096 | -10/Exiles | Opened EX-Vault 2112 | -10/Exiles | Found Superbattery 2153 | -10/Exiles | Warned to stay clear of 0b10 Research branches 2207 | -10/Exiles | Build established: Hauler-Mutant 2266 | -10/Exiles | Discovered new exit (range 11) 2282 | -10/Exiles | Left Exiles lab with Superbattery 2282 | -10/Exiles | Entered Mines 2286 | -9/Mines | Assisted by bots powering up and referring to "LRC-V3" 2404 | -9/Mines | Found a damaged Exp. Sensor Array with a note attached 2408 | -9/Mines | Found Prototype Device 2489 | -9/Mines | Assembled infested the area 2767 | -9/Mines | Discovered new exit (range 5) 2777 | -9/Mines | Met a Derelict shopkeep closing up shop 2822 | -9/Mines | Entered Materials 2822 | -8/Materials | Accompanied by 3 allies 2822 | -8/Materials | Evolved 4 slots: Utility x4 2824 | -8/Materials | Loaded intel: 34 trap records 2864 | -8/Materials | Garrison activated, responded to threat 3758 | -8/Materials | Discovered new exit (range 11) 4074 | -8/Materials | Discovered new exit (range 16) 4488 | -8/Materials | Identified exit to Garrison 4488 | -8/Materials | Entered Garrison 4499 | -8/Garrison | Installed Relay Interface Framework 4633 | -8/Garrison | Triggered checkpoint 4810 | -8/Garrison | Garrison Relay disabled 5010 | -8/Garrison | Triggered checkpoint 5118 | -8/Garrison | Triggered checkpoint 5222 | -8/Garrison | Triggered checkpoint 5409 | -8/Garrison | Garrison Relay disabled 5593 | -8/Garrison | Discovered new exit (range 15) 6004 | -8/Garrison | Discovered new exit (range 9) 6067 | -8/Garrison | Triggered checkpoint 6232 | -8/Garrison | Triggered checkpoint 6286 | -8/Garrison | Triggered checkpoint 6495 | -8/Garrison | Discovered new exit (range 9) 6834 | -8/Garrison | Triggered checkpoint 6857 | -8/Garrison | Garrison Relay disabled 6982 | -8/Garrison | Triggered checkpoint 7479 | -8/Garrison | Garrison Relay disabled 7711 | -8/Garrison | Entered Materials 7711 | -8/Materials | Accompanied by 4 allies 8111 | -8/Materials | First assault squad dispatched 9557 | -8/Materials | Discovered new exit (range 10) 9882 | -8/Materials | Repaired Med. Insulated Plating 9921 | -8/Materials | Repaired Arm. Treads 9966 | -8/Materials | Repaired Proton Missile Launcher 11344 | -8/Materials | Garrison activated, responded to threat 11625 | -8/Materials | Repaired Hrd. Medium Armor Plating 11664 | -8/Materials | Repaired Reflective Plating 11819 | -8/Materials | Identified exit to Garrison 11820 | -8/Materials | Entered Garrison 11820 | -8/Garrison | Accompanied by 7 allies 12062 | -8/Garrison | Triggered checkpoint 12332 | -8/Garrison | Garrison Relay disabled 12536 | -8/Garrison | Triggered checkpoint 12590 | -8/Garrison | Triggered checkpoint 12914 | -8/Garrison | Triggered checkpoint 12954 | -8/Garrison | Triggered checkpoint 13175 | -8/Garrison | Triggered checkpoint 13270 | -8/Garrison | Garrison Relay disabled 13433 | -8/Garrison | Discovered new exit (range 12) 13698 | -8/Garrison | Triggered checkpoint 13698 | -8/Garrison | Triggered checkpoint 13738 | -8/Garrison | Destroyed 7 combat bots 13776 | -8/Garrison | Triggered checkpoint 13783 | -8/Garrison | Discovered new exit (range 10) 13822 | -8/Garrison | Expanded RIF knowledge: Zone Cloak 13897 | -8/Garrison | Garrison Relay disabled 14184 | -8/Garrison | High security lockdown imminent 14264 | -8/Garrison | High security lockdown engaged 14421 | -8/Garrison | Destroyed 13 combat bots 14469 | -8/Garrison | Core integrity fell below 50% 14493 | -8/Garrison | Destroyed 7 combat bots 14517 | -8/Garrison | Lost 4 parts (1n2u1w) 14654 | -8/Garrison | Lost 4 parts (2n1u1w) 14702 | -8/Garrison | Destroyed 40 combat bots 14776 | -8/Garrison | Destroyed 10 combat bots 14817 | -8/Garrison | Sterilization system engaged 14817 | -8/Garrison | Non-combat units ordered to evacuate 14876 | -8/Garrison | Destroyed 27 combat bots 14917 | -8/Garrison | Combat units ordered to evacuate 15117 | -8/Garrison | Ambient heat levels rising (+10) 15131 | -8/Garrison | Garrison Relay disabled 15267 | -8/Garrison | Ambient heat levels rising (+10) 15330 | -8/Garrison | Discovered new exit (range 8) 15417 | -8/Garrison | Ambient heat levels rising (+10) 15435 | -8/Garrison | Build established: Bothacker-Mutant 15567 | -8/Garrison | Ambient heat levels rising (+10) 15685 | -8/Garrison | Phase Generator disabled 15717 | -8/Garrison | Ambient heat levels rising (+10) 15867 | -8/Garrison | Ambient heat levels rising (+10) 15930 | -8/Garrison | Triggered checkpoint 15969 | -8/Garrison | Garrison Relay disabled 16017 | -8/Garrison | Ambient heat levels rising (+10) 16017 | -8/Garrison | Entered Factory 16017 | -7/Factory | Evolved 2 slots: Utility x2 16417 | -7/Factory | First assault squad dispatched 17032 | -7/Factory | Build established: Hauler-Mutant 18878 | -7/Factory | Discovered new exit (range 16) 19202 | -7/Factory | Fabricated Imp. Heavy Treads? 19297 | -7/Factory | Fabricated Hcp. Storage Unit (x1) 19308 | -7/Factory | Local fabrication network quarantined 19422 | -7/Factory | Repaired Enh. Autogun 19449 | -7/Factory | Repaired Flak Gun 19793 | -7/Factory | Discovered new exit (range 5) 21330 | -7/Factory | Discovered new exit (range 16) 21837 | -7/Factory | Sucked down chute 21837 | -7/Factory | Entered Waste 21838 | -7/Waste | Met a frightened Derelict 21893 | -7/Waste | Spotted C-40 Crusher 21895 | -7/Waste | Spotted C-40 Crusher 21906 | -7/Waste | Spotted C-40 Crusher 21938 | -7/Waste | Destroyed C-40 Crusher 22026 | -7/Waste | Spotted C-40 Crusher 22064 | -7/Waste | Spotted C-40 Crusher 22117 | -7/Waste | Spotted C-40 Crusher 22256 | -7/Waste | Destroyed C-40 Crusher 22421 | -7/Waste | Destroyed C-40 Crusher 22453 | -7/Waste | Destroyed C-40 Crusher 22465 | -7/Waste | Found Damper Plating 22479 | -7/Waste | Found Damper Plating 22520 | -7/Waste | Destroyed C-40 Crusher 22529 | -7/Waste | Found Damper Plating 22791 | -7/Waste | Destroyed C-40 Crusher 22812 | -7/Waste | Found Damper Plating 22920 | -7/Waste | Discovered new exit (range 11) 22983 | -7/Waste | Warlord forces began an assault 23151 | -7/Waste | Entered Factory 23151 | -7/Factory | Accompanied by 19 allies 24153 | -7/Factory | Discovered new exit (range 16) 24596 | -7/Factory | Fabricated Proton Missile Launcher (x1) 24643 | -7/Factory | Fabricated Proton Missile Launcher (x1) 24689 | -7/Factory | Fabricated Proton Missile Launcher (x1) 24751 | -7/Factory | Local fabrication network quarantined 24773 | -7/Factory | Garrison activated, responded to threat 24942 | -7/Factory | Core integrity fell below 50% 25002 | -7/Factory | Identified exit to Lower Caves 26351 | -7/Factory | First assault squad dispatched 28846 | -7/Factory | High security lockdown imminent 28926 | -7/Factory | High security lockdown engaged 29069 | -7/Factory | Destroyed 9 combat bots 29109 | -7/Factory | Destroyed 13 combat bots 29161 | -7/Factory | Destroyed 9 combat bots 29351 | -7/Factory | Sterilization system engaged 29351 | -7/Factory | Non-combat units ordered to evacuate 29388 | -7/Factory | Lost 3 parts (1p1n1u) 29409 | -7/Factory | Destroyed 16 combat bots 29451 | -7/Factory | Combat units ordered to evacuate 29651 | -7/Factory | Ambient heat levels rising (+10) 29801 | -7/Factory | Ambient heat levels rising (+10) 29951 | -7/Factory | Ambient heat levels rising (+10) 30101 | -7/Factory | Ambient heat levels rising (+10) 30251 | -7/Factory | Ambient heat levels rising (+10) 30401 | -7/Factory | Ambient heat levels rising (+10) 30551 | -7/Factory | Ambient heat levels rising (+10) 30701 | -7/Factory | Ambient heat levels rising (+10) 30851 | -7/Factory | Ambient heat levels rising (+10) 31001 | -7/Factory | Ambient heat levels rising (+10) 31024 | -7/Factory | Entered Lower Caves 31099 | -7/Lower Caves | Spotted B-75 Beast 31106 | -7/Lower Caves | CL-ANK showed up to help 31108 | -7/Lower Caves | CL-ANK revealed a hidden path 31111 | -7/Lower Caves | Entered Factory 31111 | -6/Factory | Evolved 2 slots: Utility x2 31262 | -6/Factory | Garrison activated, responded to threat 31307 | -6/Factory | Garrison activated, responded to threat 31406 | -6/Factory | Discovered new exit (range 15) 31461 | -6/Factory | First assault squad dispatched 31539 | -6/Factory | Destroyed 7 combat bots 32044 | -6/Factory | Garrison activated, responded to threat 32152 | -6/Factory | Destroyed 7 combat bots 32177 | -6/Factory | High security lockdown imminent 32257 | -6/Factory | High security lockdown engaged 32257 | -6/Factory | Destroyed 9 combat bots 32263 | -6/Factory | Lost 7 parts (1n5u1w) 32355 | -6/Factory | Lost 3 parts (1p2u) 32373 | -6/Factory | Garrison activated, responded to threat 32467 | -6/Factory | Destroyed 18 combat bots 32576 | -6/Factory | Core integrity fell below 50% 32589 | -6/Factory | Core integrity fell below 20% 32594 | -6/Factory | Destroyed by H-66 Slayer with Gauss Rifle Last Messages --------------- 32574_ Hvy. Missile Launcher destroyed. 32576_ Lgt. Treads destroyed. 32576_ System corrupted: Hvy. Missile Launcher failed to launch. 32577_ Hvy. Missile Launcher destroyed. 32578_ Penetrated by Slug. 32581_ Imp. Grenade Launcher destroyed. 32581_ Rnf. Deuterium Engine destroyed. 32586_ The unstable cave ceiling collapses. 32586_ Lgt. Antimatter Reactor crushed. 32586_ Flak Gun destroyed. 32586_ Slug penetrates Wall. 32587_ Destroyed Carbon-fiber Leg. 32588_ L-41 Fighter destroyed. 32590_ Slug penetrates Wall. 32591_ The unstable cave ceiling collapses. 32591_ Y-54 Guardian crushed by falling debris. 32591_ The unstable cave ceiling collapses. 32593_ Chain reaction triggered in Rnf. Deuterium Engine. 32593_ B-48 Gladiator destroyed. 32594_ Penetrated by Slug. Map ----- +----------------------------------------------------+ | | | | | | | | | | | | | | | | | | | | | | | | | | | | | | | | | | | | | | | | | | | | | | | | | ??????????????#;; ####### ##????????? | | ??????????????#;@/% ????????? | | ??????????????#;/%! * ????????? | | ??????????????#; ######## | | ??????????????# / !%=! | | ?????????????? = ######## | | ?????????????# = / ???????? | | ????????????? #????????? | | ????????????? ????????? | | #########??? # =%g p ????????? | | ? #??? [%%= #????????? | | ? #??## #YY%!# =h# ##l???????? | | ? """"" ##### Y # [!! p %/ ?????????? | | # """"" # Y = ??????????? | | # """ # = !% = ?????????? | | # + < [ ! = ""?????????? | | # """"" # [ % "??????????? | | ??""""" # ## ! "??????????? | | ??""" ### ###?? # " "????????? | | ?? #?# #????! # #? "????????? | | ? #?# #????? # #?? "????????? | | ?########?# #???? ?# ??"????????? | | ??????????# #???? ? !%# ? ????????? | | ??????????# #??? ?? [ =!= ?????????? | | ??????????# #??????# =%*%###?????????? | | ?????###### #??????# % =%[!???????????? | +----------------------------------------------------+ Best States ------------- Heat Dissipation 142 Coolant Potential 65 Energy Generation 21 Energy Capacity 2280 Matter Stores 300 Matter Capacity 300 Sight Range 16 Terrain Scan Density 10 Armor Coverage 3300 Resistance: TH 10 Resistance: EM 90 Weapon Shielding 66 Evasion (%) 50 Targeting Accuracy 16 Armor Integrity Analysis 50 Recoil Reduction 2 Offensive Hacking 10 Defensive Hacking 20 Relay Coupler Types 44 Relay Coupler Value 2 Item Schematics ----------------- Hcp. Storage Unit | -8/Materials | Scanalyzed Proton Missile Launcher | -7/Factory | Scanalyzed Robot Schematics ------------------ None Fabricated ------------ Imp. Heavy Treads | x2 | -7/Factory | Preloaded Hcp. Storage Unit | x1 | -7/Factory Proton Missile Launcher | x1 | -7/Factory Proton Missile Launcher | x1 | -7/Factory Proton Missile Launcher | x1 | -7/Factory Alien Tech Used ----------------- None Achievements -------------- Shocking Conclusion Challenges ------------ None Game ------ Seed MatterArchitectStabilizer Manual? 0 Play Time 06:38:08 Cumulative 280.5 hours Start 2021.01.02 @ 14:19:22 End 2021.01.03 @ 18:49:22 Sessions 9 Manual Loads 0 Difficulty Rogue Special Mode None Game No. 99 Rogue 95 Adventurer 4 Explorer 0 Win Type - Total 4 Types 3/0/1/0/0/0/0/0/0 Lore% 67 Gallery% 76 Achievement% 61 Wizard Run 0 Options --------- ASCII 1 Keyboard 0 Movement Arrows Keybinds 0 Fullscreen 1 Font 18/SmallcapsGlow Map View 76x50 Tactical HUD 1 Map Filters NONE Filters NONE Steam 1 RUN: cb981b36-42e6-4852-b544-d0b90b622780